[Event "Titled Tuesday Blitz August 3 2021"]
[White "Salinas Herrera, Pablo"]
[Black "freshfoodcompany"]
[WhiteFideId "3407128"]
[WhiteElo "2541"]
[BlackElo "2432"]
[Result "1-0"]
[Round "04"]
[TimeControl "180+1"]
[Date "2021.08.03"]
[WhiteClock "0:00:19"]
[BlackClock "0:00:26"]

1. d4 {[%clk 0:03:00]}  d5 {[%clk 0:02:59]} 2. Bf4 {[%clk 0:03:00]}  c5 {[%clk 0:02:59]} 3. e3 {[%clk 0:02:59]}  Nc6 {[%clk 0:02:57]} 4. Nf3 {[%clk 0:02:59]}  Nf6 {[%clk 0:02:57]} 5. Nbd2 {[%clk 0:02:58]}  Bg4 {[%clk 0:02:56]} 6. c3 {[%clk 0:02:56]}  e6 {[%clk 0:02:55]} 7. Qa4 {[%clk 0:02:55]}  Bd6 {[%clk 0:02:54]} 8. Ne5 {[%clk 0:02:44]}  Bxe5 {[%clk 0:02:49]} 9. Bxe5 {[%clk 0:02:36]}  cxd4 {[%clk 0:02:47]} 10. exd4 {[%clk 0:02:25]}  O-O {[%clk 0:02:46]} 11. Bg3 {[%clk 0:02:25]}  Qb6 {[%clk 0:02:43]} 12. Qb3 {[%clk 0:02:18]}  Rfc8 {[%clk 0:02:33]} 13. Qxb6 {[%clk 0:02:15]}  axb6 {[%clk 0:02:34]} 14. f3 {[%clk 0:02:15]}  Bf5 {[%clk 0:02:33]} 15. Be2 {[%clk 0:02:06]}  Nd7 {[%clk 0:02:24]} 16. Kf2 {[%clk 0:02:03]}  f6 {[%clk 0:02:21]} 17. a3 {[%clk 0:01:55]}  e5 {[%clk 0:02:15]} 18. dxe5 {[%clk 0:01:54]}  Ndxe5 {[%clk 0:02:14]} 19. Rhe1 {[%clk 0:01:41]}  Bd3 {[%clk 0:02:09]} 20. f4 {[%clk 0:01:30]}  Bxe2 {[%clk 0:02:07]} 21. fxe5 {[%clk 0:01:31]}  Bg4 {[%clk 0:01:54]} 22. h3 {[%clk 0:01:28]}  Bf5 {[%clk 0:01:40]} 23. exf6 {[%clk 0:01:26]}  gxf6 {[%clk 0:01:41]} 24. Nf3 {[%clk 0:01:25]}  Be4 {[%clk 0:01:37]} 25. Rad1 {[%clk 0:01:22]}  Na5 {[%clk 0:01:31]} 26. Nd4 {[%clk 0:01:18]}  Nc4 {[%clk 0:01:27]} 27. Re2 {[%clk 0:01:18]}  Re8 {[%clk 0:01:23]} 28. Rde1 {[%clk 0:01:18]}  Bg6 {[%clk 0:01:20]} 29. Bf4 {[%clk 0:01:12]}  Rxe2+ {[%clk 0:01:19]} 30. Rxe2 {[%clk 0:01:12]}  Re8 {[%clk 0:01:19]} 31. Rxe8+ {[%clk 0:01:10]}  Bxe8 {[%clk 0:01:18]} 32. Bc1 {[%clk 0:01:11]}  Bd7 {[%clk 0:01:09]} 33. b3 {[%clk 0:01:00]}  Nd6 {[%clk 0:01:06]} 34. Bd2 {[%clk 0:00:20]}  Nb5 {[%clk 0:00:58]} 35. Nc2 {[%clk 0:00:19]}  Bf5 {[%clk 0:00:58]} 36. Nb4 {[%clk 0:00:19]}  Be4 {[%clk 0:00:31]} 37. a4 {[%clk 0:00:19]}  Nc7 {[%clk 0:00:30]} 38. Be3 {[%clk 0:00:19]}  Bc2 {[%clk 0:00:26]} 39. Nxc2 {[%clk 0:00:19]} 1-0


[Site "https://www.chess.com"]

[Event "Titled Tuesday Blitz August 3 2021"]
[White "Sarana, Alexey"]
[Black "Mirzoev, Azer"]
[WhiteFideId "24133795"]
[BlackFideId "13400304"]
[WhiteElo "2646"]
[BlackElo "2525"]
[Result "0-1"]
[Round "04"]
[TimeControl "180+1"]
[Date "2021.08.03"]
[WhiteClock "0:00:20"]
[BlackClock "0:00:37"]

1. e4 {[%clk 0:02:59]}  e5 {[%clk 0:03:00]} 2. Nf3 {[%clk 0:03:00]}  Nc6 {[%clk 0:03:00]} 3. Bc4 {[%clk 0:03:00]}  Bc5 {[%clk 0:02:59]} 4. c3 {[%clk 0:03:00]}  Nf6 {[%clk 0:02:58]} 5. d3 {[%clk 0:03:01]}  d6 {[%clk 0:02:57]} 6. O-O {[%clk 0:02:56]}  Bb6 {[%clk 0:02:56]} 7. Nbd2 {[%clk 0:02:55]}  Ne7 {[%clk 0:02:55]} 8. d4 {[%clk 0:02:53]}  Ng6 {[%clk 0:02:54]} 9. h3 {[%clk 0:02:48]}  O-O {[%clk 0:02:54]} 10. Bd3 {[%clk 0:02:45]}  c6 {[%clk 0:02:52]} 11. Nc4 {[%clk 0:02:45]}  Bc7 {[%clk 0:02:53]} 12. dxe5 {[%clk 0:02:42]}  dxe5 {[%clk 0:02:52]} 13. a4 {[%clk 0:02:41]}  Re8 {[%clk 0:02:50]} 14. Be3 {[%clk 0:02:40]}  h6 {[%clk 0:02:48]} 15. Qc2 {[%clk 0:02:20]}  Qe7 {[%clk 0:02:46]} 16. b4 {[%clk 0:02:19]}  Be6 {[%clk 0:02:32]} 17. Bc5 {[%clk 0:02:16]}  Qd8 {[%clk 0:02:31]} 18. Rad1 {[%clk 0:02:16]}  b6 {[%clk 0:02:23]} 19. Be3 {[%clk 0:02:14]}  Qe7 {[%clk 0:02:23]} 20. a5 {[%clk 0:02:13]}  b5 {[%clk 0:02:18]} 21. Bc5 {[%clk 0:02:10]}  bxc4 {[%clk 0:02:10]} 22. Bxe7 {[%clk 0:02:09]}  cxd3 {[%clk 0:02:10]} 23. Qxd3 {[%clk 0:02:10]}  Nxe7 {[%clk 0:02:07]} 24. Nd2 {[%clk 0:02:03]}  c5 {[%clk 0:02:07]} 25. Qb5 {[%clk 0:01:56]}  cxb4 {[%clk 0:02:05]} 26. cxb4 {[%clk 0:01:57]}  Bd6 {[%clk 0:01:44]} 27. Nc4 {[%clk 0:01:24]}  Rab8 {[%clk 0:01:29]} 28. Qa6 {[%clk 0:01:24]}  Bxb4 {[%clk 0:01:27]} 29. Nd6 {[%clk 0:01:20]}  Red8 {[%clk 0:01:14]} 30. Nb7 {[%clk 0:01:09]}  Rdc8 {[%clk 0:01:09]} 31. Qxa7 {[%clk 0:01:06]}  Nc6 {[%clk 0:01:08]} 32. Qa6 {[%clk 0:01:01]}  Nd4 {[%clk 0:01:06]} 33. Rxd4 {[%clk 0:00:54]}  exd4 {[%clk 0:01:05]} 34. Rb1 {[%clk 0:00:55]}  Bc3 {[%clk 0:01:02]} 35. Qd6 {[%clk 0:00:48]}  Nxe4 {[%clk 0:01:00]} 36. Qa3 {[%clk 0:00:40]}  Nd2 {[%clk 0:00:57]} 37. Rb5 {[%clk 0:00:38]}  Nc4 {[%clk 0:00:55]} 38. Qa4 {[%clk 0:00:34]}  Bd7 {[%clk 0:00:49]} 39. a6 {[%clk 0:00:33]}  Bxb5 {[%clk 0:00:49]} 40. Qxb5 {[%clk 0:00:34]}  Nd6 {[%clk 0:00:47]} 41. Qd5 {[%clk 0:00:19]}  Nxb7 {[%clk 0:00:46]} 42. a7 {[%clk 0:00:20]}  Ra8 {[%clk 0:00:39]} 43. Qxb7 {[%clk 0:00:20]}  d3 {[%clk 0:00:39]} 44. Kf1 {[%clk 0:00:21]}  Re8 {[%clk 0:00:38]} 45. g3 {[%clk 0:00:20]}  d2 {[%clk 0:00:38]} 46. Qd5 {[%clk 0:00:20]}  Rad8 {[%clk 0:00:37]} 0-1


[Site "https://www.chess.com"]

[Event "Titled Tuesday Blitz August 3 2021"]
[White "Shahade, Gregory"]
[Black "Gerzhoy, Leonid"]
[WhiteFideId "2009064"]
[BlackFideId "2806126"]
[WhiteElo "2716"]
[BlackElo "2513"]
[Result "1-0"]
[Round "04"]
[TimeControl "180+1"]
[Date "2021.08.03"]
[WhiteClock "0:01:03"]
[BlackClock "0:00:42"]

1. e4 {[%clk 0:03:00]}  d6 {[%clk 0:02:59]} 2. d4 {[%clk 0:03:00]}  Nf6 {[%clk 0:02:59]} 3. Nc3 {[%clk 0:03:00]}  e5 {[%clk 0:02:59]} 4. Nge2 {[%clk 0:02:59]}  Be7 {[%clk 0:02:58]} 5. g3 {[%clk 0:02:53]}  O-O {[%clk 0:02:57]} 6. Bg2 {[%clk 0:02:53]}  a6 {[%clk 0:02:57]} 7. a4 {[%clk 0:02:49]}  b6 {[%clk 0:02:57]} 8. O-O {[%clk 0:02:49]}  Bb7 {[%clk 0:02:57]} 9. h3 {[%clk 0:02:42]}  Nbd7 {[%clk 0:02:57]} 10. Be3 {[%clk 0:02:37]}  Re8 {[%clk 0:02:55]} 11. Qd2 {[%clk 0:02:29]}  Bf8 {[%clk 0:02:49]} 12. d5 {[%clk 0:02:28]}  c6 {[%clk 0:02:46]} 13. dxc6 {[%clk 0:02:17]}  Bxc6 {[%clk 0:02:45]} 14. Rad1 {[%clk 0:02:15]}  Nc5 {[%clk 0:02:41]} 15. Bxc5 {[%clk 0:02:13]}  dxc5 {[%clk 0:02:40]} 16. Qe3 {[%clk 0:02:03]}  Qc7 {[%clk 0:02:38]} 17. Nd5 {[%clk 0:02:03]}  Bxd5 {[%clk 0:02:14]} 18. exd5 {[%clk 0:02:04]}  Rad8 {[%clk 0:02:13]} 19. Nc3 {[%clk 0:02:03]}  c4 {[%clk 0:02:03]} 20. Rfe1 {[%clk 0:01:58]}  Bc5 {[%clk 0:02:01]} 21. Qe2 {[%clk 0:01:56]}  Bd4 {[%clk 0:01:59]} 22. g4 {[%clk 0:01:34]}  Qc5 {[%clk 0:01:49]} 23. g5 {[%clk 0:01:27]}  Bxc3 {[%clk 0:01:41]} 24. bxc3 {[%clk 0:01:23]}  Nd7 {[%clk 0:01:30]} 25. d6 {[%clk 0:01:17]}  Nf8 {[%clk 0:01:28]} 26. Rd5 {[%clk 0:01:16]}  Qa3 {[%clk 0:01:23]} 27. Qxc4 {[%clk 0:01:10]}  Rxd6 {[%clk 0:01:18]} 28. Rdxe5 {[%clk 0:01:07]}  Rxe5 {[%clk 0:01:15]} 29. Rxe5 {[%clk 0:01:08]}  Qc1+ {[%clk 0:01:12]} 30. Kh2 {[%clk 0:01:07]}  Qxc2 {[%clk 0:00:48]} 31. Qf4 {[%clk 0:01:05]}  Qxc3 {[%clk 0:00:42]} 32. Re7 {[%clk 0:01:03]} 1-0


[Site "https://www.chess.com"]

[Event "Titled Tuesday Blitz August 3 2021"]
[White "Shkapenko, Pavel"]
[Black "Savchenko, Boris"]
[WhiteFideId "4151933"]
[BlackFideId "4147332"]
[WhiteElo "2386"]
[BlackElo "2542"]
[Result "0-1"]
[Round "04"]
[TimeControl "180+1"]
[Date "2021.08.03"]
[WhiteClock "0:00:08"]
[BlackClock "0:00:32"]

1. e4 {[%clk 0:03:00]}  c5 {[%clk 0:02:55]} 2. c3 {[%clk 0:03:00]}  Nf6 {[%clk 0:02:55]} 3. e5 {[%clk 0:03:01]}  Nd5 {[%clk 0:02:55]} 4. d4 {[%clk 0:03:01]}  cxd4 {[%clk 0:02:56]} 5. cxd4 {[%clk 0:03:01]}  d6 {[%clk 0:02:57]} 6. Nf3 {[%clk 0:03:01]}  dxe5 {[%clk 0:02:56]} 7. Nxe5 {[%clk 0:02:58]}  Nc6 {[%clk 0:02:56]} 8. Bc4 {[%clk 0:02:58]}  e6 {[%clk 0:02:48]} 9. O-O {[%clk 0:02:57]}  Be7 {[%clk 0:02:46]} 10. Nf3 {[%clk 0:02:55]}  O-O {[%clk 0:02:46]} 11. Nc3 {[%clk 0:02:55]}  Nxc3 {[%clk 0:02:44]} 12. bxc3 {[%clk 0:02:55]}  b6 {[%clk 0:02:44]} 13. Bd3 {[%clk 0:02:49]}  Bb7 {[%clk 0:02:45]} 14. Qe2 {[%clk 0:02:48]}  Rc8 {[%clk 0:02:42]} 15. Bf4 {[%clk 0:02:48]}  Na5 {[%clk 0:02:38]} 16. Rfc1 {[%clk 0:02:47]}  Bd5 {[%clk 0:02:36]} 17. Ne5 {[%clk 0:02:43]}  Bf6 {[%clk 0:02:32]} 18. Rc2 {[%clk 0:01:57]}  g6 {[%clk 0:02:22]} 19. Re1 {[%clk 0:01:54]}  Re8 {[%clk 0:02:09]} 20. Qg4 {[%clk 0:01:26]}  Ba8 {[%clk 0:01:59]} 21. h4 {[%clk 0:01:23]}  h5 {[%clk 0:01:47]} 22. Qh3 {[%clk 0:00:52]}  Qd5 {[%clk 0:01:35]} 23. Qg3 {[%clk 0:00:43]}  Bxh4 {[%clk 0:01:34]} 24. Qh3 {[%clk 0:00:41]}  Bf6 {[%clk 0:01:32]} 25. Re3 {[%clk 0:00:39]}  Kf8 {[%clk 0:01:25]} 26. Rf3 {[%clk 0:00:30]}  Ke7 {[%clk 0:01:22]} 27. Nxf7 {[%clk 0:00:30]}  Kxf7 {[%clk 0:01:07]} 28. Be5 {[%clk 0:00:30]}  Qxf3 {[%clk 0:01:07]} 29. gxf3 {[%clk 0:00:30]}  Bxe5 {[%clk 0:01:07]} 30. dxe5 {[%clk 0:00:30]}  Rg8 {[%clk 0:00:54]} 31. Qh4 {[%clk 0:00:23]}  Bd5 {[%clk 0:00:47]} 32. Qf6+ {[%clk 0:00:22]}  Ke8 {[%clk 0:00:47]} 33. c4 {[%clk 0:00:17]}  Nxc4 {[%clk 0:00:47]} 34. Bxc4 {[%clk 0:00:17]}  Rxc4 {[%clk 0:00:47]} 35. Rxc4 {[%clk 0:00:16]}  Bxc4 {[%clk 0:00:48]} 36. f4 {[%clk 0:00:16]}  Bxa2 {[%clk 0:00:47]} 37. Qh4 {[%clk 0:00:14]}  Bd5 {[%clk 0:00:46]} 38. Qg3 {[%clk 0:00:14]}  Kd7 {[%clk 0:00:46]} 39. Qa3 {[%clk 0:00:14]}  Ra8 {[%clk 0:00:42]} 40. Qa4+ {[%clk 0:00:14]}  Kc7 {[%clk 0:00:42]} 41. Qb4 {[%clk 0:00:13]}  a5 {[%clk 0:00:41]} 42. Qe7+ {[%clk 0:00:13]}  Kc6 {[%clk 0:00:39]} 43. Qd6+ {[%clk 0:00:14]}  Kb5 {[%clk 0:00:39]} 44. Qd7+ {[%clk 0:00:14]}  Ka6 {[%clk 0:00:38]} 45. Qd6 {[%clk 0:00:12]}  Rc8 {[%clk 0:00:36]} 46. Kf1 {[%clk 0:00:11]}  h4 {[%clk 0:00:36]} 47. Ke2 {[%clk 0:00:08]}  h3 {[%clk 0:00:35]} 48. Qa3 {[%clk 0:00:09]}  h2 {[%clk 0:00:33]} 49. Qh3 {[%clk 0:00:08]}  h1=Q {[%clk 0:00:32]} 0-1


[Site "https://www.chess.com"]

[Event "Titled Tuesday Blitz August 3 2021"]
[White "Siva Mahadevan"]
[Black "Martinez Alcantara, Jose Eduardo"]
[WhiteFideId "25043153"]
[BlackFideId "3805662"]
[WhiteElo "2203"]
[BlackElo "2690"]
[Result "0-1"]
[Round "04"]
[TimeControl "180+1"]
[Date "2021.08.03"]
[WhiteClock "0:00:38"]
[BlackClock "0:00:37"]

1. e4 {[%clk 0:03:00]}  c5 {[%clk 0:02:59]} 2. Nf3 {[%clk 0:03:00]}  d6 {[%clk 0:02:59]} 3. d4 {[%clk 0:03:00]}  cxd4 {[%clk 0:03:00]} 4. Nxd4 {[%clk 0:03:00]}  Nf6 {[%clk 0:03:00]} 5. Nc3 {[%clk 0:03:01]}  a6 {[%clk 0:03:01]} 6. Bg5 {[%clk 0:02:58]}  e6 {[%clk 0:03:01]} 7. f4 {[%clk 0:02:57]}  Be7 {[%clk 0:03:01]} 8. Qf3 {[%clk 0:02:56]}  Qc7 {[%clk 0:03:00]} 9. O-O-O {[%clk 0:02:56]}  Nbd7 {[%clk 0:03:00]} 10. Bd3 {[%clk 0:02:56]}  b5 {[%clk 0:03:00]} 11. Rhe1 {[%clk 0:02:55]}  Bb7 {[%clk 0:02:59]} 12. Qg3 {[%clk 0:02:54]}  b4 {[%clk 0:02:53]} 13. Nd5 {[%clk 0:02:53]}  exd5 {[%clk 0:02:52]} 14. exd5 {[%clk 0:02:53]}  Kd8 {[%clk 0:02:46]} 15. Nc6+ {[%clk 0:02:52]}  Bxc6 {[%clk 0:02:46]} 16. dxc6 {[%clk 0:02:53]}  Qxc6 {[%clk 0:02:47]} 17. Bxf6 {[%clk 0:02:45]}  Nxf6 {[%clk 0:02:46]} 18. Qxg7 {[%clk 0:02:43]}  Re8 {[%clk 0:02:31]} 19. Qxf7 {[%clk 0:02:23]}  Ra7 {[%clk 0:02:20]} 20. Re6 {[%clk 0:02:08]}  Qc5 {[%clk 0:01:43]} 21. Rde1 {[%clk 0:01:59]}  Nd5 {[%clk 0:01:26]} 22. R6e4 {[%clk 0:01:48]}  Rf8 {[%clk 0:01:12]} 23. Qxh7 {[%clk 0:01:31]}  Nf6 {[%clk 0:01:02]} 24. Qg7 {[%clk 0:01:13]}  Nxe4 {[%clk 0:01:01]} 25. Rxe4 {[%clk 0:01:14]}  Rxf4 {[%clk 0:00:46]} 26. Qh8+ {[%clk 0:00:50]}  Rf8 {[%clk 0:00:45]} 27. Qh3 {[%clk 0:00:44]}  Bg5+ {[%clk 0:00:43]} 28. Kd1 {[%clk 0:00:43]}  Qg1+ {[%clk 0:00:43]} 29. Re1 {[%clk 0:00:42]}  Qf2 {[%clk 0:00:38]} 30. Re2 {[%clk 0:00:38]}  Qf4 {[%clk 0:00:37]} 0-1


[Site "https://www.chess.com"]

[Event "Titled Tuesday Blitz August 3 2021"]
[White "Song, Michael"]
[Black "Buscar, Michael"]
[WhiteFideId "2613190"]
[BlackFideId "2603616"]
[WhiteElo "2274"]
[BlackElo "2010"]
[Result "1-0"]
[Round "04"]
[TimeControl "180+1"]
[Date "2021.08.03"]
[WhiteClock "0:01:51"]
[BlackClock "0:02:08"]

1. d4 {[%clk 0:03:00]}  Nf6 {[%clk 0:02:58]} 2. Bg5 {[%clk 0:03:00]}  e6 {[%clk 0:02:56]} 3. Nd2 {[%clk 0:03:00]}  c5 {[%clk 0:02:54]} 4. e3 {[%clk 0:02:52]}  cxd4 {[%clk 0:02:53]} 5. exd4 {[%clk 0:02:52]}  Be7 {[%clk 0:02:52]} 6. Ngf3 {[%clk 0:02:52]}  b6 {[%clk 0:02:50]} 7. Bd3 {[%clk 0:02:52]}  Bb7 {[%clk 0:02:51]} 8. Qe2 {[%clk 0:02:52]}  d6 {[%clk 0:02:50]} 9. c3 {[%clk 0:02:52]}  Nbd7 {[%clk 0:02:51]} 10. O-O {[%clk 0:02:51]}  a6 {[%clk 0:02:44]} 11. Rfe1 {[%clk 0:02:44]}  Qc7 {[%clk 0:02:43]} 12. h3 {[%clk 0:02:35]}  Qc6 {[%clk 0:02:37]} 13. c4 {[%clk 0:02:22]}  d5 {[%clk 0:02:16]} 14. Rac1 {[%clk 0:02:18]}  dxc4 {[%clk 0:02:12]} 15. Nxc4 {[%clk 0:02:03]}  Qd5 {[%clk 0:02:12]} 16. Bxf6 {[%clk 0:01:52]}  Bxf6 {[%clk 0:02:08]} 17. Be4 {[%clk 0:01:51]}  Qxe4 {[%clk 0:02:08]} 18. Nd6+ {[%clk 0:01:51]} 1-0


[Site "https://www.chess.com"]

[Event "Titled Tuesday Blitz August 3 2021"]
[White "Swicarz, Maciej"]
[Black "Shimelkov, Vasiliy"]
[WhiteFideId "1113585"]
[BlackFideId "13701630"]
[WhiteElo "2199"]
[BlackElo "2073"]
[Result "1/2-1/2"]
[Round "04"]
[TimeControl "180+1"]
[Date "2021.08.03"]
[WhiteClock "0:00:39"]
[BlackClock "0:00:15"]

1. e4 {[%clk 0:03:00]}  c6 {[%clk 0:03:00]} 2. Nc3 {[%clk 0:02:59]}  d5 {[%clk 0:03:00]} 3. Qe2 {[%clk 0:02:59]}  d4 {[%clk 0:02:53]} 4. Nd1 {[%clk 0:02:59]}  e5 {[%clk 0:02:53]} 5. d3 {[%clk 0:02:57]}  g6 {[%clk 0:02:52]} 6. f4 {[%clk 0:02:57]}  Bg7 {[%clk 0:02:48]} 7. Nf3 {[%clk 0:02:56]}  Nd7 {[%clk 0:02:47]} 8. g4 {[%clk 0:02:48]}  exf4 {[%clk 0:02:45]} 9. Bxf4 {[%clk 0:02:47]}  Ne7 {[%clk 0:02:44]} 10. Bg2 {[%clk 0:02:46]}  O-O {[%clk 0:02:42]} 11. O-O {[%clk 0:02:46]}  Nc5 {[%clk 0:02:34]} 12. Nf2 {[%clk 0:02:37]}  Ne6 {[%clk 0:02:29]} 13. Bd2 {[%clk 0:02:33]}  Qc7 {[%clk 0:02:20]} 14. Nh3 {[%clk 0:02:32]}  Bd7 {[%clk 0:02:07]} 15. Qf2 {[%clk 0:02:31]}  f5 {[%clk 0:02:03]} 16. exf5 {[%clk 0:02:24]}  gxf5 {[%clk 0:02:03]} 17. gxf5 {[%clk 0:02:09]}  Rxf5 {[%clk 0:01:57]} 18. Qg3 {[%clk 0:02:10]}  Qxg3 {[%clk 0:01:52]} 19. hxg3 {[%clk 0:02:11]}  Raf8 {[%clk 0:01:48]} 20. Rae1 {[%clk 0:02:09]}  Nd5 {[%clk 0:01:42]} 21. Nh4 {[%clk 0:02:02]}  Rxf1+ {[%clk 0:01:39]} 22. Rxf1 {[%clk 0:02:02]}  Rxf1+ {[%clk 0:01:39]} 23. Kxf1 {[%clk 0:02:03]}  Kf7 {[%clk 0:01:34]} 24. Nf5 {[%clk 0:02:00]}  Be5 {[%clk 0:01:31]} 25. Kf2 {[%clk 0:01:56]}  Kf6 {[%clk 0:01:22]} 26. Nh4 {[%clk 0:01:53]}  Nc5 {[%clk 0:01:15]} 27. Ng1 {[%clk 0:01:43]}  Ne3 {[%clk 0:01:06]} 28. Bxe3 {[%clk 0:01:36]}  dxe3+ {[%clk 0:01:06]} 29. Kxe3 {[%clk 0:01:37]}  Bxb2 {[%clk 0:01:05]} 30. Nhf3 {[%clk 0:01:28]}  Be6 {[%clk 0:01:03]} 31. c4 {[%clk 0:01:28]}  Bc1+ {[%clk 0:01:00]} 32. Ke2 {[%clk 0:01:25]}  Na4 {[%clk 0:01:00]} 33. Kd1 {[%clk 0:01:20]}  Be3 {[%clk 0:00:57]} 34. Ne2 {[%clk 0:01:19]}  Bf5 {[%clk 0:00:53]} 35. Ne1 {[%clk 0:01:15]}  Bf2 {[%clk 0:00:49]} 36. d4 {[%clk 0:01:07]}  Bg4 {[%clk 0:00:47]} 37. Kd2 {[%clk 0:01:03]}  Bxe1+ {[%clk 0:00:45]} 38. Kxe1 {[%clk 0:01:03]}  Bxe2 {[%clk 0:00:45]} 39. Kxe2 {[%clk 0:01:03]}  Nc3+ {[%clk 0:00:44]} 40. Ke3 {[%clk 0:00:57]}  Nxa2 {[%clk 0:00:43]} 41. d5 {[%clk 0:00:57]}  cxd5 {[%clk 0:00:42]} 42. Bxd5 {[%clk 0:00:55]}  b6 {[%clk 0:00:32]} 43. Kd4 {[%clk 0:00:55]}  Nb4 {[%clk 0:00:31]} 44. Be4 {[%clk 0:00:54]}  h6 {[%clk 0:00:25]} 45. c5 {[%clk 0:00:53]}  bxc5+ {[%clk 0:00:23]} 46. Kxc5 {[%clk 0:00:54]}  a5 {[%clk 0:00:19]} 47. Kb5 {[%clk 0:00:53]}  Na2 {[%clk 0:00:19]} 48. Kxa5 {[%clk 0:00:52]}  Nc3 {[%clk 0:00:20]} 49. Bf3 {[%clk 0:00:52]}  Kg5 {[%clk 0:00:17]} 50. Kb4 {[%clk 0:00:52]}  Nb1 {[%clk 0:00:17]} 51. Kc5 {[%clk 0:00:48]}  Nd2 {[%clk 0:00:17]} 52. Bd1 {[%clk 0:00:48]}  Ne4+ {[%clk 0:00:16]} 53. Kd4 {[%clk 0:00:47]}  Nxg3 {[%clk 0:00:16]} 54. Ke3 {[%clk 0:00:47]}  Nf5+ {[%clk 0:00:16]} 55. Kf2 {[%clk 0:00:46]}  Kf4 {[%clk 0:00:15]} 56. Be2 {[%clk 0:00:45]}  Nd4 {[%clk 0:00:15]} 57. Bd1 {[%clk 0:00:45]}  Ne6 {[%clk 0:00:14]} 58. Bh5 {[%clk 0:00:44]}  Ng5 {[%clk 0:00:14]} 59. Bd1 {[%clk 0:00:44]}  Ne4+ {[%clk 0:00:14]} 60. Kg2 {[%clk 0:00:43]}  Nf6 {[%clk 0:00:14]} 61. Kf2 {[%clk 0:00:42]}  Nd5 {[%clk 0:00:14]} 62. Be2 {[%clk 0:00:41]}  Ne3 {[%clk 0:00:14]} 63. Bh5 {[%clk 0:00:40]}  Nf5 {[%clk 0:00:14]} 64. Bd1 {[%clk 0:00:40]}  Ne3 {[%clk 0:00:14]} 65. Bh5 {[%clk 0:00:39]}  Nf5 {[%clk 0:00:15]} 66. Bd1 {[%clk 0:00:39]}  Ne3 {[%clk 0:00:15]} 67. Bh5 {[%clk 0:00:39]} 1/2-1/2


[Site "https://www.chess.com"]

[Event "Titled Tuesday Blitz August 3 2021"]
[White "Terry, Renato"]
[Black "Assaubayeva, Bibisara"]
[WhiteFideId "3803457"]
[BlackFideId "13708694"]
[WhiteElo "2581"]
[BlackElo "2232"]
[Result "1-0"]
[Round "04"]
[TimeControl "180+1"]
[Date "2021.08.03"]
[WhiteClock "0:01:29"]
[BlackClock "0:00:12"]

1. e4 {[%clk 0:03:00]}  c5 {[%clk 0:02:59]} 2. Nf3 {[%clk 0:03:01]}  d6 {[%clk 0:03:00]} 3. Bb5+ {[%clk 0:03:01]}  Nd7 {[%clk 0:03:00]} 4. d4 {[%clk 0:03:01]}  cxd4 {[%clk 0:02:59]} 5. Qxd4 {[%clk 0:03:02]}  a6 {[%clk 0:02:58]} 6. Bxd7+ {[%clk 0:03:02]}  Bxd7 {[%clk 0:02:58]} 7. Bg5 {[%clk 0:03:03]}  h6 {[%clk 0:02:56]} 8. Bh4 {[%clk 0:03:03]}  Rc8 {[%clk 0:02:49]} 9. O-O {[%clk 0:03:01]}  e5 {[%clk 0:02:39]} 10. Bxd8 {[%clk 0:03:01]}  exd4 {[%clk 0:02:40]} 11. Bb6 {[%clk 0:03:01]}  Rxc2 {[%clk 0:02:40]} 12. Bxd4 {[%clk 0:03:01]}  Rc8 {[%clk 0:02:32]} 13. Nc3 {[%clk 0:03:00]}  Be6 {[%clk 0:02:25]} 14. Rfd1 {[%clk 0:02:55]}  Ne7 {[%clk 0:02:23]} 15. Na4 {[%clk 0:02:43]}  Nc6 {[%clk 0:02:19]} 16. Bc3 {[%clk 0:02:43]}  b5 {[%clk 0:02:18]} 17. Nb6 {[%clk 0:02:43]}  Rb8 {[%clk 0:02:16]} 18. Nd5 {[%clk 0:02:44]}  b4 {[%clk 0:02:14]} 19. Be1 {[%clk 0:02:42]}  a5 {[%clk 0:01:40]} 20. Rac1 {[%clk 0:02:39]}  Kd7 {[%clk 0:01:40]} 21. Rc4 {[%clk 0:02:29]}  Bxd5 {[%clk 0:01:01]} 22. exd5 {[%clk 0:02:13]}  Ne5 {[%clk 0:00:58]} 23. Rf4 {[%clk 0:01:58]}  Nxf3+ {[%clk 0:00:47]} 24. Rxf3 {[%clk 0:01:59]}  f6 {[%clk 0:00:38]} 25. a3 {[%clk 0:02:00]}  bxa3 {[%clk 0:00:34]} 26. bxa3 {[%clk 0:01:56]}  Rb5 {[%clk 0:00:30]} 27. a4 {[%clk 0:01:47]}  Rc5 {[%clk 0:00:27]} 28. Rb3 {[%clk 0:01:47]}  Be7 {[%clk 0:00:20]} 29. Rb7+ {[%clk 0:01:47]}  Ke8 {[%clk 0:00:20]} 30. Ra7 {[%clk 0:01:42]}  Bd8 {[%clk 0:00:19]} 31. Rxg7 {[%clk 0:01:41]}  Be7 {[%clk 0:00:15]} 32. f3 {[%clk 0:01:36]}  Kd7 {[%clk 0:00:12]} 33. Bh4 {[%clk 0:01:29]} 1-0


[Site "https://www.chess.com"]